[Event "*** Titled Tuesday 3|2 Blitz"]
[Site "Chess.com"]
[Date "2016.03.01"]
[Round "4"]
[White "Smirnov_Pavel"]
[Black "Journey_to_GrandMaster_YT"]
[Result "1/2-1/2"]
[WhiteElo "2494"]
[BlackElo "2268"]
[TimeControl "180+2"]
[EndTime "12:24:56 PST"]
[Termination "Game drawn by repetition"]

1. d4 {[%clk 0:03:01.9]} 1... Nf6 {[%clk 0:03:00.5]} 2. c4 {[%clk 0:03:02.4]}
2... g6 {[%clk 0:03:00.9]} 3. Nc3 {[%clk 0:03:01.7]} 3... Bg7 {[%clk 0:03:02.5]}
4. e4 {[%clk 0:02:56]} 4... d6 {[%clk 0:03:03.2]} 5. Nf3 {[%clk 0:02:57]} 5...
O-O {[%clk 0:03:02.2]} 6. Be2 {[%clk 0:02:58.2]} 6... Na6 {[%clk 0:03:03.1]} 7.
O-O {[%clk 0:02:58.8]} 7... e5 {[%clk 0:03:03.6]} 8. Be3 {[%clk 0:02:59.7]} 8...
Ng4 {[%clk 0:03:04.4]} 9. Bg5 {[%clk 0:03:00.4]} 9... f6 {[%clk 0:03:05.6]} 10.
Bh4 {[%clk 0:02:57.9]} 10... g5 {[%clk 0:02:53.6]} 11. Bg3 {[%clk 0:02:57.4]}
11... Nh6 {[%clk 0:02:53]} 12. d5 {[%clk 0:02:57.8]} 12... Nf7 {[%clk
0:02:50.2]} 13. Nd2 {[%clk 0:02:57.4]} 13... Bd7 {[%clk 0:02:24.1]} 14. Rb1
{[%clk 0:02:53.2]} 14... Qe7 {[%clk 0:02:20.6]} 15. b4 {[%clk 0:02:53.1]} 15...
c5 {[%clk 0:02:20.7]} 16. dxc6 {[%clk 0:02:52]} 16... bxc6 {[%clk 0:02:20.1]}
17. c5 {[%clk 0:02:53.1]} 17... Nc7 {[%clk 0:02:16.7]} 18. Nb3 {[%clk
0:02:53.8]} 18... Ne6 {[%clk 0:02:14.9]} 19. cxd6 {[%clk 0:02:48.4]} 19... Nxd6
{[%clk 0:02:15.6]} 20. Nc5 {[%clk 0:02:46.8]} 20... Rad8 {[%clk 0:02:10.4]} 21.
Nxd7 {[%clk 0:02:45.9]} 21... Rxd7 {[%clk 0:02:11.2]} 22. Qb3 {[%clk 0:02:37.4]}
22... Kh8 {[%clk 0:02:04.4]} 23. Bg4 {[%clk 0:02:38]} 23... Nd4 {[%clk
0:02:04.7]} 24. Qa4 {[%clk 0:02:35.6]} 24... Rb7 {[%clk 0:01:57.3]} 25. f3
{[%clk 0:02:28.6]} 25... Nc4 {[%clk 0:01:52.7]} 26. Rf2 {[%clk 0:02:10]} 26...
Rfb8 {[%clk 0:01:49.7]} 27. a3 {[%clk 0:02:10.4]} 27... Qf7 {[%clk 0:01:41]} 28.
Ne2 {[%clk 0:02:01.2]} 28... Nb5 {[%clk 0:01:30.6]} 29. Ra1 {[%clk 0:01:56.3]}
29... h5 {[%clk 0:01:29.6]} 30. Bf5 {[%clk 0:01:47.7]} 30... h4 {[%clk
0:01:30.3]} 31. Qb3 {[%clk 0:01:48.2]} 31... hxg3 {[%clk 0:01:28.1]} 32. hxg3
{[%clk 0:01:49.1]} 32... Ncd6 {[%clk 0:01:25.4]} 33. Be6 {[%clk 0:01:48.6]}
33... Qh5 {[%clk 0:01:03.6]} 34. g4 {[%clk 0:01:48.9]} 34... Qg6 {[%clk
0:00:55.5]} 35. g3 {[%clk 0:01:49.5]} 35... Bh6 {[%clk 0:00:42.7]} 36. Kg2
{[%clk 0:01:43.3]} 36... Kg7 {[%clk 0:00:43.3]} 37. Rc1 {[%clk 0:01:36.4]} 37...
Qe8 {[%clk 0:00:36.5]} 38. Rh1 {[%clk 0:01:05.3]} 38... Nc7 {[%clk 0:00:30.8]}
39. Bf5 {[%clk 0:00:55.9]} 39... c5 {[%clk 0:00:20.6]} 40. Kf1 {[%clk
0:00:35.4]} 40... cxb4 {[%clk 0:00:20]} 41. a4 {[%clk 0:00:25.5]} 41... Nf7
{[%clk 0:00:19.3]} 42. Rfh2 {[%clk 0:00:25.3]} 42... Na6 {[%clk 0:00:19.2]} 43.
Qc4 {[%clk 0:00:23.2]} 43... Qxa4 {[%clk 0:00:17.1]} 44. Be6 {[%clk 0:00:16.1]}
44... Qe8 {[%clk 0:00:02.4]} 45. Qxa6 {[%clk 0:00:12]} 45... Rb6 {[%clk
0:00:03.3]} 46. Bxf7 {[%clk 0:00:12]} 46... Qxf7 {[%clk 0:00:04.1]} 47. Qd3
{[%clk 0:00:11.9]} 47... b3 {[%clk 0:00:05.5]} 48. Rxh6 {[%clk 0:00:12.7]} 48...
Kf8 {[%clk 0:00:04]} 49. Rh8+ {[%clk 0:00:13.3]} 49... Ke7 {[%clk 0:00:04.7]}
50. R8h7 {[%clk 0:00:14.5]} 50... b2 {[%clk 0:00:06.1]} 51. Rxf7+ {[%clk
0:00:15.4]} 51... Kxf7 {[%clk 0:00:07.1]} 52. Qd7+ {[%clk 0:00:15.9]} 52... Kg8
{[%clk 0:00:04.5]} 53. Qd5+ {[%clk 0:00:12.2]} 53... Kg7 {[%clk 0:00:05.1]} 54.
Qd7+ {[%clk 0:00:11.1]} 54... Kg8 {[%clk 0:00:06.6]} 55. Qh7+ {[%clk 0:00:12]}
55... Kf8 {[%clk 0:00:07.6]} 56. Qh8+ {[%clk 0:00:08.7]} 56... Ke7 {[%clk
0:00:09]} 57. Rh7+ {[%clk 0:00:02.6]} 57... Ke6 {[%clk 0:00:07.5]} 58. Re7+
{[%clk 0:00:02.2]} 58... Kxe7 {[%clk 0:00:08.3]} 59. Qg7+ {[%clk 0:00:02.8]}
59... Ke6 {[%clk 0:00:09.8]} 60. Nc3 {[%clk 0:00:03.9]} 60... Rc6 {[%clk
0:00:06.7]} 61. Nb1 {[%clk 0:00:03.7]} 61... Rc1+ {[%clk 0:00:07.7]} 62. Kf2
{[%clk 0:00:04.9]} 62... Rxb1 {[%clk 0:00:09.2]} 63. Qc7 {[%clk 0:00:06]} 63...
Rf1+ {[%clk 0:00:09.6]} 64. Ke3 {[%clk 0:00:07]} 64... b1=Q {[%clk 0:00:10.1]}
65. Qc6+ {[%clk 0:00:08.1]} 65... Kf7 {[%clk 0:00:09.7]} 66. Qd7+ {[%clk
0:00:08.7]} 66... Kf8 {[%clk 0:00:10.6]} 67. Qd6+ {[%clk 0:00:09.3]} 67... Ke8
{[%clk 0:00:11.9]} 68. Qe6+ {[%clk 0:00:10.2]} 68... Kd8 {[%clk 0:00:13.2]} 69.
Qd6+ {[%clk 0:00:11.3]} 69... Kc8 {[%clk 0:00:14.8]} 70. Qc6+ {[%clk 0:00:12.5]}
70... Kd8 {[%clk 0:00:15.7]} 71. Qd6+ {[%clk 0:00:13.7]} 71... Ke8 {[%clk
0:00:17.3]} 72. Qe6+ {[%clk 0:00:14.9]} 72... Kf8 {[%clk 0:00:18.6]} 73. Qxf6+
{[%clk 0:00:15.9]} 73... Kg8 {[%clk 0:00:18.7]} 74. Qg6+ {[%clk 0:00:16.6]}
74... Kh8 {[%clk 0:00:20.3]} 75. Qh6+ {[%clk 0:00:17.4]} 75... Kg8 {[%clk
0:00:17.9]} 76. Qg6+ {[%clk 0:00:18.5]} 76... Kf8 {[%clk 0:00:19.8]} 77. Qf6+
{[%clk 0:00:19.5]} 77... Ke8 {[%clk 0:00:21.7]} 78. Qe6+ {[%clk 0:00:20.6]}
78... Kf8 {[%clk 0:00:20.6]} 79. Qf6+ {[%clk 0:00:21.4]} 1/2-1/2

[Event "*** Titled Tuesday 3|2 Blitz"]
[Site "Chess.com"]
[Date "2016.03.01"]
[Round "5"]
[White "jcgs1030"]
[Black "chorejason"]
[Result "1-0"]
[WhiteElo "2232"]
[BlackElo "2083"]
[TimeControl "180+2"]
[EndTime "12:28:50 PST"]
[Termination "jcgs1030 won by resignation"]

1. e4 {[%clk 0:03:01.9]} 1... c5 {[%clk 0:02:56.1]} 2. Nf3 {[%clk 0:03:02.2]}
2... d6 {[%clk 0:02:50.8]} 3. d4 {[%clk 0:02:59.3]} 3... cxd4 {[%clk 0:02:50.9]}
4. Nxd4 {[%clk 0:03:01.2]} 4... Nf6 {[%clk 0:02:51]} 5. Nc3 {[%clk 0:03:01.7]}
5... g6 {[%clk 0:02:52.4]} 6. Bg5 {[%clk 0:03:02]} 6... Bg7 {[%clk 0:02:54.3]}
7. Bb5+ {[%clk 0:03:02.4]} 7... Bd7 {[%clk 0:02:48.9]} 8. Qe2 {[%clk 0:03:03.5]}
8... O-O {[%clk 0:02:49]} 9. O-O-O {[%clk 0:03:05]} 9... Nc6 {[%clk 0:02:49.9]}
10. Bxc6 {[%clk 0:03:04.6]} 10... bxc6 {[%clk 0:02:51]} 11. e5 {[%clk
0:03:05.8]} 11... Nd5 {[%clk 0:02:36.6]} 12. Nxd5 {[%clk 0:03:01.2]} 12... cxd5
{[%clk 0:02:37.4]} 13. exd6 {[%clk 0:03:02.2]} 13... Qa5 {[%clk 0:02:22]} 14.
dxe7 {[%clk 0:02:57.7]} 14... Rfc8 {[%clk 0:02:11.4]} 15. Kb1 {[%clk 0:02:54.7]}
15... Rab8 {[%clk 0:02:11.8]} 16. Nb3 {[%clk 0:02:55.5]} 16... Qb4 {[%clk
0:01:55.4]} 17. Rxd5 {[%clk 0:02:55.5]} 17... h6 {[%clk 0:01:41.8]} 18. Rxd7
{[%clk 0:02:45.4]} 18... hxg5 {[%clk 0:01:41.9]} 19. Rhd1 {[%clk 0:02:46.2]}
19... Re8 {[%clk 0:01:35.2]} 20. Rd8 {[%clk 0:02:47.2]} 20... a5 {[%clk
0:01:36.2]} 21. Rxe8+ {[%clk 0:02:46.4]} 21... Rxe8 {[%clk 0:01:36.2]} 22. Rd8
{[%clk 0:02:47.9]} 22... a4 {[%clk 0:01:23.2]} 23. Rxe8+ {[%clk 0:02:48]} 1-0

[Event "*** Titled Tuesday 3|2 Blitz"]
[Site "Chess.com"]
[Date "2016.03.01"]
[Round "5"]
[White "jcibarra"]
[Black "lionheart95"]
[Result "1-0"]
[WhiteElo "2479"]
[BlackElo "2344"]
[TimeControl "180+2"]
[EndTime "12:30:11 PST"]
[Termination "jcibarra won by checkmate"]

1. e4 {[%clk 0:03:01.9]} 1... e6 {[%clk 0:02:58.8]} 2. d4 {[%clk 0:03:01.5]}
2... d5 {[%clk 0:02:58.7]} 3. Nd2 {[%clk 0:03:02.1]} 3... Be7 {[%clk 0:02:58.8]}
4. c4 {[%clk 0:02:45.8]} 4... dxc4 {[%clk 0:02:54.9]} 5. Nxc4 {[%clk 0:02:45.9]}
5... Nf6 {[%clk 0:02:50.4]} 6. e5 {[%clk 0:02:40.9]} 6... Nd5 {[%clk 0:02:40]}
7. Nf3 {[%clk 0:02:41.8]} 7... c5 {[%clk 0:02:32.3]} 8. dxc5 {[%clk 0:02:37.9]}
8... Bxc5 {[%clk 0:02:32.6]} 9. a3 {[%clk 0:02:31.8]} 9... O-O {[%clk
0:02:29.8]} 10. Bd3 {[%clk 0:02:31.4]} 10... b5 {[%clk 0:02:25.9]} 11. Bxh7+
{[%clk 0:02:23]} 11... Kxh7 {[%clk 0:02:21.8]} 12. Ng5+ {[%clk 0:02:23.6]} 12...
Kg8 {[%clk 0:02:02.1]} 13. Qh5 {[%clk 0:02:20.9]} 13... Qxg5 {[%clk 0:02:02.4]}
14. Bxg5 {[%clk 0:02:20.4]} 14... bxc4 {[%clk 0:02:03.2]} 15. O-O {[%clk
0:02:11.6]} 15... Nc6 {[%clk 0:02:03.9]} 16. Rfe1 {[%clk 0:02:11.7]} 16... f6
{[%clk 0:01:27.6]} 17. exf6 {[%clk 0:02:11.3]} 17... gxf6 {[%clk 0:01:05]} 18.
Qg6+ {[%clk 0:02:10.4]} 18... Kh8 {[%clk 0:01:05.4]} 19. Bh6 {[%clk 0:02:01.5]}
19... Bd7 {[%clk 0:00:38]} 20. Qg7# {[%clk 0:02:01.4]} 1-0

[Event "*** Titled Tuesday 3|2 Blitz"]
[Site "Chess.com"]
[Date "2016.03.01"]
[Round "5"]
[White "Smirnov_Pavel"]
[Black "Jahonas"]
[Result "1-0"]
[WhiteElo "2497"]
[BlackElo "2180"]
[TimeControl "180+2"]
[EndTime "12:30:22 PST"]
[Termination "Smirnov_Pavel won by resignation"]

1. d4 {[%clk 0:03:01.4]} 1... Nf6 {[%clk 0:02:59.8]} 2. g3 {[%clk 0:03:01.6]}
2... g6 {[%clk 0:03:00.9]} 3. Bg2 {[%clk 0:03:02.6]} 3... Bg7 {[%clk 0:03:02.3]}
4. Nf3 {[%clk 0:03:03.7]} 4... O-O {[%clk 0:03:03.6]} 5. O-O {[%clk 0:03:04.6]}
5... c5 {[%clk 0:03:04.6]} 6. c4 {[%clk 0:03:04.8]} 6... cxd4 {[%clk 0:03:03]}
7. Nxd4 {[%clk 0:03:05.4]} 7... Nc6 {[%clk 0:03:04.6]} 8. Nc3 {[%clk 0:03:05.4]}
8... Qb6 {[%clk 0:03:03.7]} 9. Nb3 {[%clk 0:03:05.3]} 9... d6 {[%clk 0:03:01.5]}
10. Be3 {[%clk 0:03:05.7]} 10... Qa6 {[%clk 0:02:58.7]} 11. Nb5 {[%clk
0:03:05.5]} 11... Be6 {[%clk 0:02:55.6]} 12. Nc7 {[%clk 0:03:05.8]} 12... Qxc4
{[%clk 0:02:55.6]} 13. Nxa8 {[%clk 0:03:06.7]} 13... Rxa8 {[%clk 0:02:56.1]} 14.
Nd4 {[%clk 0:03:07]} 14... Nxd4 {[%clk 0:02:54.4]} 15. Bxd4 {[%clk 0:03:06.9]}
15... d5 {[%clk 0:02:40.4]} 16. Rc1 {[%clk 0:03:05.2]} 16... Qxa2 {[%clk
0:02:39.7]} 17. Qd3 {[%clk 0:03:02.6]} 17... Ne4 {[%clk 0:02:15.4]} 18. Bxg7
{[%clk 0:03:01.8]} 18... Kxg7 {[%clk 0:02:15.4]} 19. Qd4+ {[%clk 0:02:54.5]}
19... Nf6 {[%clk 0:02:13.8]} 20. Rc7 {[%clk 0:02:53.3]} 20... Rc8 {[%clk
0:02:04.2]} 21. Rxb7 {[%clk 0:02:47.6]} 21... Rc2 {[%clk 0:02:01.4]} 22. e3
{[%clk 0:02:38.8]} 22... a5 {[%clk 0:02:00.9]} 23. h4 {[%clk 0:02:16.1]} 23...
h5 {[%clk 0:01:56.4]} 24. Qa7 {[%clk 0:02:12.9]} 24... Ng8 {[%clk 0:01:15.8]}
25. Rb5 {[%clk 0:02:07.5]} 25... Rxb2 {[%clk 0:01:02]} 26. Qd4+ {[%clk 0:02:07]}
1-0

[Event "*** Titled Tuesday 3|2 Blitz"]
[Site "Chess.com"]
[Date "2016.03.01"]
[Round "5"]
[White "jk13"]
[Black "Boryboy"]
[Result "0-1"]
[WhiteElo "2381"]
[BlackElo "2484"]
[TimeControl "180+2"]
[EndTime "12:31:07 PST"]
[Termination "Boryboy won by resignation"]

1. e4 {[%clk 0:03:01.9]} 1... e6 {[%clk 0:03:00.7]} 2. d4 {[%clk 0:03:02.3]}
2... d5 {[%clk 0:03:01.7]} 3. Nd2 {[%clk 0:03:04]} 3... Nf6 {[%clk 0:03:02.2]}
4. e5 {[%clk 0:03:05]} 4... Ne4 {[%clk 0:03:03.5]} 5. Bd3 {[%clk 0:03:06.9]}
5... Nxd2 {[%clk 0:03:02.4]} 6. Bxd2 {[%clk 0:03:07.9]} 6... c5 {[%clk
0:03:03.9]} 7. c3 {[%clk 0:03:07.2]} 7... Qb6 {[%clk 0:03:05.5]} 8. Nf3 {[%clk
0:02:57.2]} 8... c4 {[%clk 0:03:05.3]} 9. Bc2 {[%clk 0:02:57.6]} 9... Qxb2
{[%clk 0:03:02.6]} 10. O-O {[%clk 0:02:57]} 10... h6 {[%clk 0:03:02.3]} 11. Ne1
{[%clk 0:02:54]} 11... Qb6 {[%clk 0:03:01.3]} 12. Rb1 {[%clk 0:02:52.7]} 12...
Qc7 {[%clk 0:03:01.9]} 13. f4 {[%clk 0:02:53.2]} 13... g6 {[%clk 0:03:03]} 14.
g4 {[%clk 0:02:53.4]} 14... Nc6 {[%clk 0:03:04.1]} 15. f5 {[%clk 0:02:54.3]}
15... gxf5 {[%clk 0:03:05.1]} 16. gxf5 {[%clk 0:02:55.5]} 16... Bd7 {[%clk
0:03:04]} 17. Qh5 {[%clk 0:02:43.7]} 17... exf5 {[%clk 0:02:31.7]} 18. Bxf5
{[%clk 0:02:40.5]} 18... Bxf5 {[%clk 0:02:31.3]} 19. Rxf5 {[%clk 0:02:32.9]}
19... Rh7 {[%clk 0:02:26.9]} 20. e6 {[%clk 0:02:26.1]} 20... O-O-O {[%clk
0:02:24.8]} 21. exf7 {[%clk 0:02:17.7]} 21... Qe7 {[%clk 0:02:21.9]} 22. Qf3
{[%clk 0:02:01.6]} 22... Rd7 {[%clk 0:02:15.9]} 23. Rxd5 {[%clk 0:01:33.7]}
23... Rxf7 {[%clk 0:02:16.2]} 24. Rf5 {[%clk 0:01:28.1]} 24... Qe6 {[%clk
0:02:13.4]} 25. Rf4 {[%clk 0:01:20.2]} 25... Qg6+ {[%clk 0:02:11.3]} 26. Kf2
{[%clk 0:01:08.5]} 26... Rxf4 {[%clk 0:02:10.1]} 27. Bxf4 {[%clk 0:01:03.5]}
27... Qxb1 {[%clk 0:02:09.7]} 28. d5 {[%clk 0:01:01]} 28... Bc5+ {[%clk
0:02:09.5]} 29. Kf1 {[%clk 0:00:58]} 29... Ne7 {[%clk 0:02:08.2]} 30. Qe2 {[%clk
0:00:42.2]} 30... Qf5 {[%clk 0:01:53.8]} 31. Qxc4 {[%clk 0:00:43]} 31... b6
{[%clk 0:01:54]} 32. Ng2 {[%clk 0:00:41.2]} 32... Nxd5 {[%clk 0:01:54.8]} 0-1

[Event "*** Titled Tuesday 3|2 Blitz"]
[Site "Chess.com"]
[Date "2016.03.01"]
[Round "5"]
[White "HovmoellerHest"]
[Black "GrigorGrigorov"]
[Result "0-1"]
[WhiteElo "2359"]
[BlackElo "2517"]
[TimeControl "180+2"]
[EndTime "12:31:41 PST"]
[Termination "GrigorGrigorov won by checkmate"]

1. d4 {[%clk 0:03:01.9]} 1... g6 {[%clk 0:03:00.1]} 2. c4 {[%clk 0:03:00.3]}
2... Bg7 {[%clk 0:03:01.5]} 3. Nc3 {[%clk 0:02:59.7]} 3... d6 {[%clk 0:03:03]}
4. e4 {[%clk 0:02:59.6]} 4... Nd7 {[%clk 0:03:03.1]} 5. Be3 {[%clk 0:02:57]}
5... e5 {[%clk 0:03:03.3]} 6. Nge2 {[%clk 0:02:57.1]} 6... Ne7 {[%clk
0:03:03.9]} 7. f3 {[%clk 0:02:46.4]} 7... O-O {[%clk 0:03:00.9]} 8. Qd2 {[%clk
0:02:46.7]} 8... a6 {[%clk 0:03:01]} 9. h4 {[%clk 0:02:13.8]} 9... f5 {[%clk
0:02:43.2]} 10. d5 {[%clk 0:01:51]} 10... Nf6 {[%clk 0:02:38.3]} 11. O-O-O
{[%clk 0:01:44.3]} 11... b5 {[%clk 0:02:38.1]} 12. Kb1 {[%clk 0:01:34.8]} 12...
b4 {[%clk 0:02:35.7]} 13. Na4 {[%clk 0:01:33.9]} 13... fxe4 {[%clk 0:02:35.9]}
14. Qxb4 {[%clk 0:01:29.7]} 14... exf3 {[%clk 0:02:26.3]} 15. gxf3 {[%clk
0:01:30.4]} 15... Bf5+ {[%clk 0:02:27.4]} 16. Ka1 {[%clk 0:01:30.1]} 16... Bc2
{[%clk 0:02:23]} 17. Rc1 {[%clk 0:01:26.9]} 17... Rb8 {[%clk 0:02:21.3]} 18. Qa5
{[%clk 0:01:25.1]} 18... Bxa4 {[%clk 0:02:21.5]} 19. Qxa4 {[%clk 0:01:25.9]}
19... e4 {[%clk 0:02:22.1]} 20. Nd4 {[%clk 0:01:16.3]} 20... exf3 {[%clk
0:02:04.6]} 21. Ne6 {[%clk 0:01:16.3]} 21... Nfxd5 {[%clk 0:01:45.3]} 22. Bd4
{[%clk 0:01:00.1]} 22... Bxd4 {[%clk 0:01:41.8]} 23. Nxd4 {[%clk 0:01:01]} 23...
Ne3 {[%clk 0:01:13.1]} 24. Ne6 {[%clk 0:00:54.9]} 24... Qe8 {[%clk 0:01:03.8]}
25. Qa3 {[%clk 0:00:54.8]} 25... N7f5 {[%clk 0:00:57.9]} 26. Nxf8 {[%clk
0:00:54.8]} 26... Nc2+ {[%clk 0:00:57.9]} 27. Rxc2 {[%clk 0:00:47.8]} 27... Qe1+
{[%clk 0:00:57.7]} 28. Rc1 {[%clk 0:00:49.2]} 28... Qxc1# {[%clk 0:00:58.4]} 0-1

[Event "*** Titled Tuesday 3|2 Blitz"]
[Site "Chess.com"]
[Date "2016.03.01"]
[Round "5"]
[White "Danirod"]
[Black "MinhGTrAn"]
[Result "1/2-1/2"]
[WhiteElo "2413"]
[BlackElo "2651"]
[TimeControl "180+2"]
[EndTime "12:31:46 PST"]
[Termination "Game drawn by agreement"]

1. e4 {[%clk 0:03:01.9]} 1... c5 {[%clk 0:03:01.1]} 2. Nf3 {[%clk 0:03:03]} 2...
d6 {[%clk 0:03:02.5]} 3. Bb5+ {[%clk 0:03:03.9]} 3... Bd7 {[%clk 0:03:03.6]} 4.
Bxd7+ {[%clk 0:03:04.9]} 4... Qxd7 {[%clk 0:03:05.5]} 5. O-O {[%clk 0:03:06.1]}
5... Nf6 {[%clk 0:03:07.2]} 6. e5 {[%clk 0:03:07]} 6... dxe5 {[%clk 0:03:07.3]}
7. Nxe5 {[%clk 0:03:08.9]} 7... Qc7 {[%clk 0:03:06.6]} 8. Re1 {[%clk 0:03:09.3]}
8... Nc6 {[%clk 0:03:05.8]} 9. Nxc6 {[%clk 0:03:05.2]} 9... Qxc6 {[%clk
0:03:07.7]} 10. b3 {[%clk 0:03:06.6]} 10... e6 {[%clk 0:03:05.5]} 11. Bb2 {[%clk
0:03:08.1]} 11... Be7 {[%clk 0:03:07]} 12. Na3 {[%clk 0:03:09.4]} 12... O-O
{[%clk 0:03:07.8]} 13. Nc4 {[%clk 0:03:10.7]} 13... Rfd8 {[%clk 0:03:09.3]} 14.
a4 {[%clk 0:03:11.3]} 14... b6 {[%clk 0:03:09.8]} 15. Qe2 {[%clk 0:03:06.3]}
15... Rd5 {[%clk 0:03:01.4]} 16. Ne5 {[%clk 0:02:59]} 16... Qe8 {[%clk 0:02:48]}
17. a5 {[%clk 0:02:57.6]} 17... b5 {[%clk 0:02:34.6]} 18. c4 {[%clk 0:02:51.3]}
18... bxc4 {[%clk 0:02:36.5]} 19. bxc4 {[%clk 0:02:52.9]} 19... Rdd8 {[%clk
0:02:36.6]} 20. Bc3 {[%clk 0:02:51.2]} 20... a6 {[%clk 0:02:35.5]} 21. Qf3
{[%clk 0:02:51.1]} 21... Rdc8 {[%clk 0:02:21.8]} 22. Rab1 {[%clk 0:02:49.6]}
22... Bd6 {[%clk 0:02:17.5]} 23. Rb7 {[%clk 0:02:46.2]} 23... Bxe5 {[%clk
0:02:09.4]} 24. Bxe5 {[%clk 0:02:45.5]} 24... Qc6 {[%clk 0:02:11]} 25. Qxc6
{[%clk 0:02:18.4]} 25... Rxc6 {[%clk 0:02:12.9]} 26. f3 {[%clk 0:02:12.5]} 26...
h6 {[%clk 0:01:54.4]} 27. Reb1 {[%clk 0:02:11.8]} 27... Rcc8 {[%clk 0:01:41.2]}
28. Kf2 {[%clk 0:02:08.7]} 28... Ne8 {[%clk 0:01:31.7]} 29. Rb8 {[%clk
0:01:50.5]} 29... f6 {[%clk 0:01:13.5]} 30. Rxa8 {[%clk 0:01:47.8]} 30... Rxa8
{[%clk 0:01:14]} 31. Rb8 {[%clk 0:01:48.4]} 31... Rxb8 {[%clk 0:01:10.2]} 32.
Bxb8 {[%clk 0:01:50.3]} 32... Kf7 {[%clk 0:01:09.4]} 33. Ba7 {[%clk 0:01:33.2]}
33... Nd6 {[%clk 0:01:09.1]} 34. d3 {[%clk 0:01:33.1]} 34... Nb7 {[%clk
0:01:10.2]} 35. Ke3 {[%clk 0:01:33.4]} 35... e5 {[%clk 0:01:09]} 36. Bb6 {[%clk
0:01:34]} 36... Ke6 {[%clk 0:01:07.9]} 37. g4 {[%clk 0:01:35.5]} 37... g5 {[%clk
0:01:04.7]} 38. Bc7 {[%clk 0:01:34.9]} 38... Kd7 {[%clk 0:01:02.6]} 39. Bb6
{[%clk 0:01:35.3]} 39... Ke6 {[%clk 0:01:02.1]} 1/2-1/2

[Event "*** Titled Tuesday 3|2 Blitz"]
[Site "Chess.com"]
[Date "2016.03.01"]
[Round "5"]
[White "Saitama_Hero"]
[Black "Abdodi"]
[Result "1/2-1/2"]
[WhiteElo "2088"]
[BlackElo "1944"]
[TimeControl "180+2"]
[EndTime "12:32:34 PST"]
[Termination "Game drawn by repetition"]

1. d4 {[%clk 0:03:01.9]} 1... Nf6 {[%clk 0:02:59.8]} 2. c4 {[%clk 0:03:03.3]}
2... e6 {[%clk 0:03:00.8]} 3. Nc3 {[%clk 0:03:04.3]} 3... Bb4 {[%clk 0:03:02.3]}
4. f3 {[%clk 0:03:05.7]} 4... O-O {[%clk 0:03:01.9]} 5. a3 {[%clk 0:03:07.2]}
5... Bxc3+ {[%clk 0:03:02.4]} 6. bxc3 {[%clk 0:03:09.1]} 6... c6 {[%clk
0:03:01.9]} 7. e4 {[%clk 0:03:09.2]} 7... d5 {[%clk 0:03:02.9]} 8. e5 {[%clk
0:03:09.1]} 8... Ne8 {[%clk 0:02:55.9]} 9. Nh3 {[%clk 0:02:53.7]} 9... f6 {[%clk
0:02:56]} 10. exf6 {[%clk 0:02:47.1]} 10... Nxf6 {[%clk 0:02:54.2]} 11. Bd3
{[%clk 0:02:46.6]} 11... Nbd7 {[%clk 0:02:37.7]} 12. Qe2 {[%clk 0:02:05.5]}
12... Qe7 {[%clk 0:02:31.9]} 13. Nf4 {[%clk 0:01:56.3]} 13... dxc4 {[%clk
0:02:21.3]} 14. Bxc4 {[%clk 0:01:55]} 14... Nb6 {[%clk 0:02:16.9]} 15. Bxe6+
{[%clk 0:01:52.4]} 15... Bxe6 {[%clk 0:02:17.2]} 16. Qxe6+ {[%clk 0:01:53.8]}
16... Qxe6+ {[%clk 0:02:18.4]} 17. Nxe6 {[%clk 0:01:54.3]} 17... Rfe8 {[%clk
0:02:17.8]} 18. Kf2 {[%clk 0:01:55.8]} 18... Rxe6 {[%clk 0:02:18.4]} 19. a4
{[%clk 0:01:57.7]} 19... Rae8 {[%clk 0:02:17.7]} 20. a5 {[%clk 0:01:54.8]} 20...
Re2+ {[%clk 0:02:17.8]} 21. Kg3 {[%clk 0:01:54.4]} 21... Nbd5 {[%clk 0:02:12.3]}
22. Rb1 {[%clk 0:01:54.1]} 22... R8e7 {[%clk 0:02:11.3]} 23. Ba3 {[%clk
0:01:52.4]} 23... Rd7 {[%clk 0:02:05.8]} 24. c4 {[%clk 0:01:46.1]} 24... Nh5+
{[%clk 0:01:59.6]} 25. Kg4 {[%clk 0:01:43.3]} 25... Ndf6+ {[%clk 0:02:00.7]} 26.
Kh4 {[%clk 0:01:39.2]} 26... Rxd4+ {[%clk 0:02:01.3]} 27. g4 {[%clk 0:01:38]}
27... Rxc4 {[%clk 0:01:51.7]} 28. Rxb7 {[%clk 0:01:38.5]} 28... Re8 {[%clk
0:01:39]} 29. Rxa7 {[%clk 0:01:28.3]} 29... h6 {[%clk 0:01:39.7]} 30. Bd6 {[%clk
0:01:11.8]} 30... g5+ {[%clk 0:01:40.2]} 31. Kh3 {[%clk 0:01:13.3]} 31... Rc3
{[%clk 0:01:37.3]} 32. gxh5 {[%clk 0:01:10.6]} 32... Rxf3+ {[%clk 0:01:37.4]}
33. Kg2 {[%clk 0:01:09.4]} 33... g4 {[%clk 0:01:35]} 34. Re7 {[%clk 0:00:54.7]}
34... Rxe7 {[%clk 0:01:32]} 35. Bxe7 {[%clk 0:00:56.6]} 35... Nxh5 {[%clk
0:01:33]} 36. Rf1 {[%clk 0:00:49.2]} 36... Nf4+ {[%clk 0:01:30.4]} 37. Kg1
{[%clk 0:00:50]} 37... Nh3+ {[%clk 0:01:11.7]} 38. Kg2 {[%clk 0:00:50]} 38...
Nf4+ {[%clk 0:01:11.5]} 39. Kg1 {[%clk 0:00:50.3]} 39... Nh3+ {[%clk 0:01:12.3]}
40. Kg2 {[%clk 0:00:51.9]} 40... Nf4+ {[%clk 0:01:13.4]} 1/2-1/2